bitfinex/quotes_BTCUSD_20250522
["timestamp","ask_amount","ask_price","bid_price","bid_amount"]
[1747903754377,0.21428921,110550.0,110540.0,1.802033]
[1747903754526,0.21428921,110550.0,110540.0,1.47743]
[1747903755756,0.18588921,110550.0,110540.0,1.47743]
[1747903755960,0.15948921,110550.0,110540.0,1.56697556]
[1747903756170,0.16853456,110550.0,110540.0,1.59357556]
[1747903756584,0.16853456,110550.0,110540.0,1.59361556]
[1747903758159,0.16853456,110550.0,110540.0,1.33971748]
[1747903758560,0.16853456,110550.0,110540.0,1.36081748]
[1747903758986,0.16853456,110550.0,110540.0,1.33971748]
[1747903760907,0.16853456,110550.0,110540.0,0.99971748]
[1747903761113,0.16853456,110550.0,110540.0,1.02081748]
[1747903761317,0.16853456,110550.0,110540.0,1.36081748]
[1747903761928,0.16853456,110550.0,110540.0,1.33971748]
[1747903763214,0.15948921,110550.0,110540.0,1.31311748]
[1747903763415,0.15948921,110550.0,110540.0,1.58435748]
[1747903764955,0.21468921,110550.0,110540.0,1.58435748]
[1747903765436,0.21468921,110550.0,110540.0,1.31311748]
[1747903766534,0.21468921,110550.0,110540.0,1.22357192]
[1747903771714,0.21468921,110550.0,110540.0,0.9967896]
[1747903778851,0.18658921,110550.0,110540.0,0.9967896]
[1747903780655,0.52328929,110550.0,110540.0,0.34004]
[1747903780877,0.82219651,110550.0,110540.0,4e-05]
[1747903781097,1.02701732,110550.0,110540.0,4e-05]
[1747903781321,0.25274039,110530.0,110520.0,4e-05]
[1747903781549,0.6280668,110530.0,110520.0,4e-05]
[1747903781790,0.71718523,110530.0,110520.0,0.00850272]
[1747903784327,0.80496556,110530.0,110520.0,0.00069156]
[1747903784535,0.28021727,110510.0,110500.0,0.03397579]
[1747903784888,1.24514438,110510.0,110500.0,0.03397579]
[1747903785097,0.2702533,110490.0,110480.0,0.00204]
[1747903785297,1.30946041,110490.0,110480.0,0.00204]
[1747903785959,0.63107886,110490.0,110480.0,0.00204]
[1747903786175,0.34525801,110490.0,110480.0,0.00204]
[1747903786375,0.61658896,110490.0,110480.0,0.00204]
[1747903786545,0.70611047,110490.0,110480.0,0.00204]
[1747903786982,0.61658896,110490.0,110480.0,0.00204]
[1747903787166,0.2280634,110490.0,110480.0,0.00204]
[1747903787339,0.2280634,110490.0,110480.0,1.926123]
[1747903787552,0.2280634,110490.0,110480.0,2.082339]
[1747903787930,0.2300634,110490.0,110480.0,2.082339]
[1747903788151,0.44288515,110490.0,110480.0,0.00204]
[1747903788578,0.6970267,110490.0,110480.0,0.00204]
[1747903789415,0.44288515,110490.0,110480.0,0.00204]
[1747903789619,0.44188515,110490.0,110480.0,0.00204]
[1747903790040,0.43988515,110490.0,110480.0,0.00204]
[1747903790428,0.50588515,110490.0,110480.0,0.00304]
[1747903790755,0.49988515,110490.0,110480.0,0.00204]
[1747903790977,0.50488515,110490.0,110480.0,0.00304]
[1747903791186,0.27008935,110470.0,110460.0,0.03403332]
[1747903791401,0.67710812,110470.0,110460.0,0.03403332]
[1747903792037,0.68710812,110470.0,110460.0,0.00204]
[1747903792268,0.69710812,110470.0,110460.0,0.00204]
[1747903792890,0.68810812,110470.0,110460.0,0.00204]
[1747903793115,0.69810812,110470.0,110460.0,0.00204]
[1747903793594,0.68910812,110470.0,110460.0,0.00204]
[1747903793803,0.39320727,110470.0,110460.0,0.00204]
[1747903794010,0.66360727,110470.0,110460.0,0.00204]
[1747903794210,0.66260727,110470.0,110460.0,0.00204]
[1747903794434,0.66560727,110470.0,110460.0,0.00304]
[1747903794596,0.66660727,110470.0,110460.0,0.00404]
[1747903794833,0.36590727,110470.0,110460.0,0.00404]
[1747903795056,0.31979406,110470.0,110460.0,0.00404]
[1747903795206,0.34749406,110470.0,110460.0,0.00404]
[1747903797431,0.36139996,110470.0,110460.0,0.00404]
[1747903797756,0.38594081,110470.0,110460.0,0.00404]
[1747903797954,0.19918457,110450.0,110440.0,0.05204]
[1747903798167,0.39295057,110450.0,110440.0,0.05204]
[1747903799247,0.39400148,110450.0,110440.0,0.05404]
[1747903799648,0.67998233,110450.0,110440.0,0.05404]
[1747903800051,0.68098233,110450.0,110440.0,0.05604]
[1747903801030,0.40954233,110450.0,110440.0,0.05604]
[1747903801244,1.08370233,110450.0,110440.0,0.05604]
[1747903801455,1.35784388,110450.0,110440.0,0.04879919]
[1747903801849,1.35784388,110450.0,110440.0,0.04155838]
[1747903802396,1.35784388,110450.0,110440.0,0.03955838]
[1747903802397,1.35684388,110450.0,110440.0,0.03955838]
[1747903802595,1.35684388,110450.0,110440.0,0.03231757]
[1747903802805,0.26522064,110430.0,110420.0,0.00204]
[1747903803022,0.26522064,110430.0,110360.0,0.07217285]
[1747903803023,0.18120866,110370.0,110360.0,0.07217285]
[1747903803224,0.18120866,110370.0,110360.0,1.91696094]
[1747903803462,0.1902659,110380.0,110360.0,1.93112334]
[1747903803674,0.18120866,110370.0,110360.0,0.36910593]
[1747903803893,0.19026574,110380.0,110370.0,0.34]
[1747903804221,0.18120687,110380.0,110370.0,2.16984456]
[1747903804435,0.18119224,110380.0,110370.0,2.17873171]
[1747903804874,0.18320414,110390.0,110370.0,2.17873171]
[1747903805091,0.18320414,110390.0,110380.0,2.080299]
[1747903805496,0.18320414,110390.0,110380.0,2.16984456]
[1747903805944,0.18320414,110390.0,110380.0,1.66984456]
[1747903806151,0.18420414,110390.0,110380.0,1.72594456]
[1747903806353,0.18320414,110390.0,110380.0,1.580299]
[1747903806565,0.19025168,110380.0,110370.0,0.00051008]
[1747903806772,0.33509724,110380.0,110370.0,0.37966708]
[1747903807129,0.20937065,110380.0,110370.0,0.37966708]
[1747903807338,0.001,110380.0,110370.0,0.46921264]
[1747903807551,0.2083695,110380.0,110370.0,0.74936708]
[1747903807764,0.20232065,110390.0,110380.0,0.34]
[1747903807993,0.004,110390.0,110380.0,1.72584456]
[1747903808451,0.003,110390.0,110380.0,2.40024456]
[1747903808678,0.18314374,110410.0,110380.0,2.37241556]
[1747903808894,0.18115942,110400.0,110390.0,1.72584456]
[1747903809106,0.19220031,110410.0,110400.0,0.34]
[1747903809107,0.20125705,110410.0,110400.0,0.34]
[1747903809315,0.21031453,110410.0,110400.0,1.580299]
[1747903810577,0.21031453,110410.0,110390.0,0.76598556]
[1747903810578,0.21738997,110400.0,110390.0,0.40488]
[1747903810787,0.20833184,110400.0,110390.0,1.645179]
[1747903811059,0.21738981,110400.0,110390.0,1.985179]
[1747903811506,0.21738981,110400.0,110390.0,1.582299]
[1747903811718,0.19927511,110400.0,110390.0,1.580299]
[1747903811927,0.19927511,110400.0,110390.0,0.483025]
[1747903812132,0.19927511,110400.0,110390.0,0.34]
[1747903812365,0.19927511,110400.0,110390.0,0.487001]
[1747903812570,0.19927511,110400.0,110390.0,0.488001]
[1747903812993,0.24581739,110400.0,110390.0,0.481]
[1747903813217,0.19121739,110400.0,110390.0,0.481]
[1747903813810,0.19121739,110400.0,110390.0,0.141]
[1747903814870,0.24771739,110400.0,110390.0,0.001]
[1747903815070,0.24771739,110400.0,110390.0,0.115774]
[1747903815268,0.19931055,110380.0,110370.0,0.0282]
[1747903815480,0.18119224,110380.0,110370.0,1.48663056]
[1747903815688,0.19025111,110380.0,110370.0,1.21507056]
[1747903815909,0.19025111,110380.0,110370.0,2.22951056]
[1747903816366,0.18119224,110380.0,110370.0,2.28481056]
[1747903816559,0.18119224,110380.0,110370.0,2.28881056]
[1747903816560,0.001,110380.0,110370.0,2.28881056]
[1747903816811,0.002,110380.0,110370.0,2.29281056]
[1747903817020,0.18319224,110380.0,110370.0,2.29281056]
[1747903817225,0.19225119,110380.0,110370.0,2.23751056]
[1747903817478,0.18319224,110380.0,110370.0,2.23751056]
[1747903817689,0.002,110380.0,110370.0,2.29171056]
[1747903818544,0.001,110400.0,110380.0,0.0542]
[1747903818805,0.001,110400.0,110390.0,1.54083056]
[1747903819424,0.18215942,110400.0,110390.0,1.54083056]
[1747903819606,0.001,110400.0,110390.0,1.54083056]
[1747903819778,0.002,110400.0,110390.0,1.54083056]
[1747903820007,0.003,110400.0,110390.0,1.54083056]
[1747903820193,0.001,110400.0,110390.0,1.54083056]
[1747903820618,0.002,110400.0,110390.0,1.61027056]
[1747903820821,0.68315942,110400.0,110390.0,2.28319056]
[1747903821187,0.502,110400.0,110390.0,2.28319056]
[1747903822515,0.68315942,110400.0,110390.0,2.28319056]
[1747903822727,0.68315942,110400.0,110390.0,2.22899056]
[1747903822943,0.68315942,110400.0,110390.0,1.95743056]
[1747903823154,0.68315942,110400.0,110390.0,2.22899056]
[1747903824261,0.68215942,110400.0,110390.0,2.22899056]
[1747903824894,0.68215942,110400.0,110390.0,2.25659056]
[1747903825550,0.68215942,110400.0,110390.0,2.22899056]
[1747903825757,0.68215942,110400.0,110390.0,1.95743056]
[1747903825963,0.68315942,110400.0,110390.0,1.867885]
[1747903826179,0.68315942,110400.0,110390.0,1.126525]
[1747903826180,0.75787478,110400.0,110390.0,1.126525]
[1747903826448,0.75787478,110400.0,110390.0,0.110888]
[1747903826660,0.75787478,110400.0,110390.0,0.450888]
[1747903827081,0.75787478,110400.0,110390.0,0.341]
[1747903827292,0.79379103,110400.0,110390.0,0.341]
[1747903827510,0.75787478,110400.0,110390.0,0.001]
[1747903827736,0.75787478,110400.0,110390.0,0.138988]
[1747903827920,0.20836942,110380.0,110370.0,0.72950377]
[1747903828116,0.19931014,110380.0,110370.0,1.95260077]
[1747903828318,0.20836942,110380.0,110370.0,1.95260077]
[1747903828521,0.21742952,110380.0,110370.0,1.27968077]
[1747903828730,0.21738952,110380.0,110370.0,1.27968077]
[1747903829141,0.21738944,110380.0,110370.0,1.28368077]
[1747903829347,0.21838944,110380.0,110370.0,1.28368077]
[1747903829552,0.21938944,110380.0,110370.0,1.28768077]
[1747903829691,0.21032991,110380.0,110370.0,1.28768077]
[1747903830096,0.18315224,110380.0,110370.0,1.28768077]
[1747903830344,0.20127022,110380.0,110370.0,1.28768077]
[1747903830584,0.2193887,110380.0,110370.0,1.28768077]
[1747903830711,0.22844814,110380.0,110370.0,1.28768077]
[1747903831057,0.2193887,110380.0,110370.0,1.28768077]
[1747903831273,0.22844814,110380.0,110370.0,1.28768077]
[1747903831492,0.21032975,110380.0,110370.0,1.28768077]
[1747903831762,0.21938919,110380.0,110370.0,1.28768077]
[1747903831972,0.21938919,110380.0,110370.0,1.96064077]
[1747903832176,0.21032975,110380.0,110370.0,1.96064077]
[1747903833001,0.21032975,110380.0,110370.0,1.96068077]
[1747903833752,0.22844872,110380.0,110370.0,1.96068077]
[1747903833951,0.21032975,110380.0,110370.0,1.96068077]
[1747903834206,0.19221127,110380.0,110370.0,1.96068077]
[1747903834401,0.19221119,110380.0,110370.0,1.96068077]
[1747903834608,0.2012703,110380.0,110370.0,1.96068077]
[1747903834811,0.19221119,110380.0,110370.0,1.96068077]
[1747903835015,0.002,110380.0,110370.0,2.05022633]
[1747903835216,0.18319224,110380.0,110370.0,2.07702633]
[1747903835422,0.18319224,110380.0,110370.0,2.10612633]
[1747903835626,0.18319224,110380.0,110370.0,2.05022633]
[1747903835834,0.19225119,110380.0,110370.0,1.45052256]
[1747903836038,0.18319224,110380.0,110370.0,1.72212256]
[1747903836433,0.20131006,110380.0,110370.0,1.72212256]
[1747903836693,0.21036926,110380.0,110370.0,1.72212256]
[1747903836848,0.21036917,110380.0,110370.0,1.72212256]
[1747903837105,0.2103695,110380.0,110370.0,1.632577]
[1747903837305,0.25831072,110380.0,110370.0,1.632577]
[1747903837460,0.26737016,110380.0,110370.0,1.632577]
[1747903837663,0.27642969,110380.0,110370.0,1.360977]
[1747903837866,0.26737049,110380.0,110370.0,1.972577]
[1747903838603,0.26737049,110380.0,110370.0,1.700977]
[1747903838783,0.26737049,110380.0,110370.0,1.745525]
[1747903839201,0.2764301,110380.0,110370.0,1.745525]
[1747903839399,0.2764301,110380.0,110370.0,1.072525]
[1747903839628,0.24925152,110380.0,110370.0,0.863505]
[1747903839829,0.26736999,110380.0,110370.0,0.863505]
[1747903840008,0.27642952,110380.0,110370.0,0.863505]
[1747903840203,0.26737049,110380.0,110370.0,0.863505]
[1747903840815,0.26637049,110380.0,110370.0,0.859505]
[1747903841134,0.26737049,110380.0,110370.0,0.862505]
[1747903841295,0.24825177,110380.0,110370.0,0.591809]
[1747903841497,0.23919224,110380.0,110370.0,0.591809]
[1747903841787,0.25731104,110380.0,110370.0,0.591809]
[1747903841941,0.26637032,110380.0,110370.0,0.591809]
[1747903842143,0.26737032,110380.0,110370.0,0.594809]
[1747903842393,0.25831104,110380.0,110370.0,0.594809]
[1747903843219,0.18319224,110380.0,110370.0,0.594809]
[1747903843735,0.002,110380.0,110370.0,0.594809]
[1747903843919,0.002,110380.0,110370.0,0.625609]
[1747903844185,0.002,110380.0,110370.0,0.652784]
[1747903844404,0.002,110380.0,110370.0,0.77222956]
[1747903844611,0.18319224,110380.0,110370.0,1.44526956]
[1747903844819,0.21942919,110380.0,110370.0,1.38456956]
[1747903845019,0.23231022,110380.0,110370.0,1.267849]
[1747903845235,0.18319224,110380.0,110370.0,1.267849]
[1747903845455,0.20131006,110380.0,110370.0,1.267849]
[1747903846093,0.27226926,110380.0,110370.0,1.267849]
[1747903846319,0.27227024,110380.0,110370.0,0.594809]
[1747903846545,0.28132911,110380.0,110370.0,0.594809]
[1747903847184,0.29038864,110380.0,110370.0,0.594809]
[1747903847586,0.28132911,110380.0,110370.0,0.594809]
[1747903848261,0.27226967,110380.0,110370.0,0.594809]
[1747903848449,0.27226966,110380.0,110370.0,0.594809]
[1747903848676,0.2813291,110380.0,110370.0,0.594809]
[1747903849358,0.27226966,110380.0,110370.0,0.594809]
[1747903850729,0.28132927,110380.0,110370.0,0.594809]
[1747903851139,0.28132919,110380.0,110370.0,0.594809]
[1747903851979,0.28132919,110380.0,110370.0,0.254809]
[1747903852384,0.27226966,110380.0,110370.0,0.594809]
[1747903852560,0.28132919,110380.0,110370.0,0.594809]
[1747903853801,0.27227024,110380.0,110370.0,0.594809]
[1747903853976,0.26321113,110380.0,110370.0,0.594809]
[1747903856116,0.26421113,110380.0,110370.0,0.594809]
[1747903857213,0.26321113,110380.0,110370.0,0.591809]
[1747903857635,0.26321113,110380.0,110370.0,0.592809]
[1747903857636,0.26421113,110380.0,110370.0,0.592809]
[1747903857859,0.21519224,110380.0,110370.0,0.592809]
[1747903858095,0.18419224,110380.0,110370.0,0.592809]
[1747903858773,0.18319224,110380.0,110370.0,0.589809]
[1747903858966,0.18419224,110380.0,110370.0,0.591809]
[1747903859165,0.19325119,110380.0,110370.0,0.591809]
[1747903859455,0.18419224,110380.0,110370.0,0.591809]
[1747903860117,0.19325111,110380.0,110370.0,0.591809]
[1747903861257,0.18419224,110380.0,110370.0,0.591809]
[1747903861644,0.19325111,110380.0,110370.0,0.591809]
[1747903862516,0.26251022,110380.0,110370.0,0.863409]
[1747903862925,0.28062903,110380.0,110370.0,0.591809]
[1747903863337,0.19325127,110380.0,110370.0,0.591809]
[1747903863997,0.20231047,110380.0,110370.0,0.591809]
[1747903864389,0.19325127,110380.0,110370.0,0.591809]
[1747903864625,0.20231047,110380.0,110370.0,0.591809]
[1747903865007,0.27086983,110380.0,110370.0,0.591809]
[1747903865228,0.27992928,110380.0,110370.0,0.591809]
[1747903865565,0.26181047,110380.0,110370.0,0.591809]
[1747903866316,0.25275127,110380.0,110370.0,0.591809]
[1747903866539,0.26181047,110380.0,110370.0,0.591809]
[1747903866747,0.27086983,110380.0,110370.0,0.591809]
[1747903868535,0.27992936,110380.0,110370.0,0.591809]
[1747903868757,0.27086983,110380.0,110370.0,0.591809]
[1747903869400,0.26181047,110380.0,110370.0,0.591809]
[1747903869968,0.27086983,110380.0,110370.0,0.591809]
[1747903870501,0.27992944,110380.0,110370.0,0.591809]
[1747903870683,0.27087041,110380.0,110370.0,0.591809]
[1747903873845,0.27087033,110380.0,110370.0,0.591809]
[1747903874766,0.23331047,110380.0,110370.0,0.591809]
[1747903875010,0.29068847,110380.0,110370.0,0.591809]
[1747903875236,0.27257049,110380.0,110370.0,0.591809]
[1747903876856,0.26351121,110380.0,110370.0,0.591809]
[1747903878273,0.25445185,110380.0,110370.0,0.591809]
[1747903879292,0.25445185,110380.0,110370.0,0.251809]
[1747903879730,0.25445185,110380.0,110370.0,0.591809]
[1747903880360,0.52605185,110380.0,110370.0,0.591809]
[1747903883790,0.25445185,110380.0,110370.0,0.591809]
[1747903884416,0.25345185,110380.0,110370.0,0.591809]
[1747903884662,0.25445185,110380.0,110370.0,0.591809]
[1747903886271,0.32517863,110380.0,110370.0,0.591809]
[1747903886894,0.25445185,110380.0,110370.0,0.591809]
[1747903889555,0.24945185,110380.0,110370.0,0.591809]
[1747903893325,0.52109185,110380.0,110370.0,0.591809]
[1747903907955,0.61063741,110380.0,110370.0,0.591809]
[1747903908160,0.61063741,110380.0,110370.0,0.05079781]
[1747903908365,0.70015892,110380.0,110370.0,0.05079781]
[1747903908575,0.70015892,110380.0,110370.0,0.500449]
[1747903908781,0.70015892,110380.0,110370.0,0.340908]
[1747903909433,0.70015892,110380.0,110370.0,0.317708]
[1747903909852,0.61063741,110380.0,110370.0,0.317708]
[1747903912065,0.61063741,110380.0,110370.0,0.301168]
[1747903912723,0.61063741,110380.0,110370.0,0.287975]
[1747903914684,0.61163741,110380.0,110370.0,0.287975]
[1747903915320,0.61163741,110380.0,110370.0,0.265479]
[1747903915523,0.70115892,110380.0,110370.0,0.265479]
[1747903916911,0.70115892,110380.0,110370.0,0.210397]
[1747903919307,0.70115892,110380.0,110370.0,0.003]
[1747903919513,0.89661484,110380.0,110370.0,0.003]
[1747903919717,0.70115892,110380.0,110370.0,0.003]
[1747903920145,0.70115892,110380.0,110370.0,0.002]
[1747903920576,0.70215892,110380.0,110370.0,0.004]
[1747903921247,0.70115892,110380.0,110370.0,0.002]
[1747903921469,0.61363741,110380.0,110370.0,0.003]
[1747903921894,0.61263741,110380.0,110370.0,0.001]
[1747903922326,0.61463741,110380.0,110370.0,0.002]
[1747903922553,0.34299741,110380.0,110370.0,0.002]
[1747903922801,0.39628366,110380.0,110370.0,0.002]
[1747903923024,0.34299741,110380.0,110370.0,0.002]
[1747903923248,0.25345185,110380.0,110370.0,1.092566]
[1747903923456,0.49489185,110380.0,110370.0,1.092566]
[1747903923844,0.52279185,110380.0,110370.0,1.092566]
[1747903924115,0.52279185,110380.0,110370.0,0.846928]
[1747903924338,0.59405754,110380.0,110370.0,0.342]
[1747903926750,0.32241754,110380.0,110370.0,0.342]
[1747903926967,0.59405754,110380.0,110370.0,0.342]
[1747903930493,0.52279185,110380.0,110370.0,0.342]
[1747903933189,0.52279185,110380.0,110370.0,0.778754]
[1747903933424,0.52279185,110380.0,110370.0,0.453884]
[1747903933751,0.52279185,110380.0,110370.0,0.450935]
[1747903933952,0.52279185,110380.0,110370.0,0.342]
[1747903934177,0.32241754,110380.0,110370.0,0.342]
[1747903934604,0.59405754,110380.0,110370.0,0.342]
[1747903938768,0.52279185,110380.0,110370.0,0.342]
[1747903939810,0.25115185,110380.0,110370.0,0.342]
[1747903940018,0.52279185,110380.0,110370.0,0.342]
[1747903944360,0.52179185,110380.0,110370.0,0.342]
[1747903946034,0.25015185,110380.0,110370.0,0.342]
[1747903946204,0.52179185,110380.0,110370.0,0.342]
[1747903946426,0.20031121,110380.0,110370.0,1.092566]
[1747903946778,0.47195121,110380.0,110370.0,1.122066]
[1747903947004,0.46289185,110380.0,110370.0,1.092566]
[1747903948391,0.49169185,110380.0,110370.0,1.092566]
[1747903948586,0.52019185,110380.0,110370.0,0.342]
[1747903948792,0.52019185,110380.0,110370.0,0.483141]
[1747903951499,0.52019185,110380.0,110370.0,0.141141]
[1747903952168,0.24855185,110380.0,110370.0,0.141141]
[1747903952312,0.52019185,110380.0,110370.0,0.141141]
[1747903952519,0.53763349,110380.0,110370.0,0.141141]
[1747903952719,0.52019185,110380.0,110370.0,0.141141]
[1747903957034,0.52019185,110380.0,110370.0,0.481141]
[1747903957232,0.46289185,110380.0,110370.0,0.481141]
[1747903958996,0.18219224,110380.0,110370.0,0.481141]
[1747903959239,0.18219224,110380.0,110370.0,0.62928656]
[1747903959443,0.20431022,110380.0,110370.0,0.90092656]
[1747903960077,0.20031014,110380.0,110370.0,0.62928656]
[1747903960281,0.22748822,110380.0,110370.0,0.63028656]
[1747903960513,0.21942935,110380.0,110370.0,0.63128656]
[1747903960722,0.21942935,110380.0,110370.0,0.63028656]
[1747903960948,0.21842935,110380.0,110370.0,0.62928656]
[1747903961151,0.20131121,110380.0,110370.0,0.483141]
[1747903961591,0.26061121,110380.0,110370.0,0.342]
[1747903961792,0.26061121,110380.0,110370.0,0.610527]
[1747903963130,0.27061121,110380.0,110370.0,0.610527]
[1747903964531,0.21131121,110380.0,110370.0,0.610527]
[1747903965426,0.26255185,110380.0,110370.0,0.610527]
[1747903969571,0.54752928,110380.0,110370.0,0.610527]
[1747903970030,0.54752928,110380.0,110370.0,0.342]
[1747903970683,0.35207336,110380.0,110370.0,0.342]
[1747903970882,0.63707484,110380.0,110370.0,0.342]
[1747903971110,0.44161892,110380.0,110370.0,0.342]
[1747903973271,0.44161892,110380.0,110370.0,0.002]
[1747903974689,0.44261892,110380.0,110370.0,0.002]
[1747903976706,0.65261569,110380.0,110370.0,0.002]
[1747903977114,0.45715977,110380.0,110370.0,0.002]
[1747903978390,1.12799977,110380.0,110370.0,0.002]
[1747903978803,0.45715977,110380.0,110370.0,0.002]
[1747903979005,1.12807977,110380.0,110370.0,0.002]
[1747903979417,1.32353569,110380.0,110370.0,0.002]
[1747903980208,1.13675904,110380.0,110370.0,0.002]
[1747903980428,1.33121496,110380.0,110370.0,0.001]
[1747903980647,0.25116892,110370.0,110360.0,0.00204]
[1747903980826,0.43023599,110370.0,110360.0,0.00204]
[1747903981228,0.19936507,110350.0,110340.0,0.03205896]
[1747903981429,0.19936507,110350.0,110340.0,0.18999996]
[1747903981636,0.19936507,110350.0,110340.0,0.157941]
[1747903985016,0.21948814,110350.0,110340.0,0.64968656]
[1747903985272,0.22855021,110350.0,110340.0,0.64968656]
[1747903986863,0.21948888,110350.0,110340.0,0.64968656]
[1747903987557,0.01250891,110380.0,110370.0,0.0184]
[1747903987804,0.01250891,110380.0,110370.0,1.86947156]
[1747903988035,0.001,110390.0,110380.0,0.3584]
[1747903988268,0.5,110400.0,110390.0,0.0184]
[1747903988496,0.5,110400.0,110390.0,1.38291019]
[1747903988721,0.5,110400.0,110390.0,1.380646]
[1747903988957,0.03393579,110430.0,110410.0,0.0164]
[1747903989151,0.03393579,110430.0,110420.0,1.8533351]
[1747903989412,0.21504599,110430.0,110420.0,1.85107156]
[1747903989624,0.21504599,110430.0,110420.0,1.20727156]
[1747903989625,0.23315643,110430.0,110420.0,1.20727156]
[1747903989857,0.24221194,110430.0,110420.0,1.20727156]
[1747903990080,0.23315684,110430.0,110420.0,1.117726]
[1747903990301,0.29235684,110430.0,110420.0,0.453611]
[1747903990505,0.29235684,110430.0,110420.0,0.45370243]
[1747903991181,0.29235684,110430.0,110420.0,0.45470243]
[1747903992251,0.29335684,110430.0,110420.0,0.45470243]
[1747903992973,0.26142105,110430.0,110420.0,0.45470243]
[1747903993184,0.35096661,110430.0,110420.0,0.00109143]
[1747903995083,0.62990883,110430.0,110420.0,0.00109143]
[1747903995768,0.63990883,110430.0,110420.0,0.00109143]
[1747903995984,1.01998883,110430.0,110420.0,9.143e-05]
[1747903996199,1.02198883,110430.0,110420.0,0.00109143]
[1747903996424,1.12251034,110430.0,110420.0,0.00109143]
[1747903996636,0.26077478,110400.0,110390.0,0.03205896]
[1747903996865,0.19023445,110390.0,110380.0,0.002]
[1747903997048,0.34128001,110390.0,110380.0,0.002]
[1747903998249,0.34143263,110390.0,110380.0,0.002]
[1747903999463,0.34343263,110390.0,110380.0,0.003]
[1747904000107,0.34743263,110390.0,110380.0,0.004]
[1747904003799,0.70135551,110390.0,110380.0,0.004]
[1747904004220,0.611834,110390.0,110380.0,0.004]
[1747904004432,0.34743263,110390.0,110380.0,0.004]
[1747904006911,0.61907263,110390.0,110380.0,0.004]
[1747904007433,0.34743263,110390.0,110380.0,0.004]
[1747904009205,0.23604561,110390.0,110380.0,1.094566]
[1747904009419,0.20544561,110390.0,110380.0,1.094566]
[1747904009821,0.21450431,110390.0,110380.0,1.094566]
[1747904011343,0.20544577,110390.0,110380.0,1.094566]
[1747904011480,0.19638715,110390.0,110380.0,1.013775]
[1747904014623,0.19638715,110390.0,110380.0,0.673775]
[1747904014826,0.18732845,110390.0,110380.0,1.10332056]
[1747904015041,0.20544504,110390.0,110380.0,1.10332056]
[1747904015255,0.20544504,110390.0,110380.0,1.13049356]
[1747904015256,0.21450366,110390.0,110380.0,1.13049356]
[1747904015707,0.22356245,110390.0,110380.0,1.52885356]
[1747904015925,0.20544504,110390.0,110380.0,1.52885356]
[1747904016365,0.20544495,110390.0,110380.0,1.52885356]
[1747904016567,0.21450349,110390.0,110380.0,1.52885356]
[1747904017391,0.22356219,110390.0,110380.0,1.52885356]
[1747904017615,0.21450349,110390.0,110380.0,1.52885356]
[1747904017823,0.20544512,110390.0,110380.0,1.52885356]
[1747904019276,0.20544504,110390.0,110380.0,1.52885356]
[1747904019507,0.21450366,110390.0,110380.0,1.52885356]
[1747904019900,0.21450358,110390.0,110380.0,1.52885356]
[1747904020715,0.20544504,110390.0,110380.0,1.52885356]
[1747904020957,0.21450317,110390.0,110380.0,1.52885356]
[1747904021889,0.00615262,110390.0,110380.0,1.52885356]
[1747904022103,0.00615262,110390.0,110380.0,1.55095356]
[1747904022304,0.00615262,110390.0,110380.0,1.94203356]
[1747904022723,0.00615262,110390.0,110380.0,1.96735079]
[1747904022932,0.00615262,110390.0,110380.0,1.98072969]
[1747904023183,0.00215262,110390.0,110380.0,1.95441246]
[1747904023417,0.00015262,110390.0,110380.0,1.97972861]
[1747904023634,0.00215262,110390.0,110380.0,1.98372861]
[1747904023864,0.00315262,110390.0,110380.0,1.98372861]
[1747904024074,0.00015262,110390.0,110380.0,1.58136861]
[1747904024283,0.00015262,110390.0,110380.0,2.23790971]
[1747904024468,0.00115262,110390.0,110380.0,2.21559356]
[1747904025405,0.00215262,110390.0,110380.0,2.21959356]
[1747904025799,0.00115262,110390.0,110380.0,2.21559356]
[1747904025974,0.00115262,110390.0,110380.0,2.23001698]
[1747904026210,0.00015262,110390.0,110380.0,2.22701698]
[1747904026429,0.00115262,110390.0,110380.0,2.23101698]
[1747904026790,0.00115262,110390.0,110380.0,2.23401698]
[1747904026791,0.00215262,110390.0,110380.0,2.23401698]
[1747904027300,0.00215262,110390.0,110380.0,2.25935631]
[1747904028102,0.00215262,110390.0,110380.0,0.62786942]
[1747904028103,0.26324545,110390.0,110380.0,0.62786942]
[1747904028307,0.26324545,110390.0,110380.0,0.18732442]
[1747904028517,0.26324545,110390.0,110380.0,0.172901]
[1747904029190,0.19929283,110390.0,110380.0,0.168901]
[1747904029642,0.19929283,110390.0,110380.0,0.166901]
[1747904029851,0.19929283,110390.0,110380.0,0.165901]
[1747904030064,0.20029283,110390.0,110380.0,0.167901]
[1747904030503,0.19929283,110390.0,110380.0,0.165901]
[1747904030715,0.20029283,110390.0,110380.0,0.165901]
[1747904031176,0.20229283,110390.0,110380.0,0.166901]
[1747904031545,0.20229283,110390.0,110380.0,0.506901]
[1747904031754,0.96285877,110390.0,110380.0,0.004]
[1747904032293,1.02225877,110390.0,110380.0,0.00404]
[1747904032502,0.25842894,110370.0,110360.0,0.03305896]
[1747904032719,0.6195345,110370.0,110360.0,0.03305896]
[1747904034038,0.6225345,110370.0,110360.0,0.03405896]
[1747904034459,0.6225345,110370.0,110360.0,0.002]
[1747904034902,0.6265345,110370.0,110360.0,0.003]
[1747904036351,0.3549745,110370.0,110360.0,0.003]
[1747904036832,0.3549745,110370.0,110360.0,0.00304]
[1747904039556,0.36847491,110370.0,110360.0,0.00304]
[1747904042325,0.72239779,110370.0,110360.0,0.00304]
[1747904042975,0.36847491,110370.0,110360.0,0.00304]
[1747904044532,0.64015491,110370.0,110360.0,0.00304]
[1747904045600,0.64015491,110370.0,110340.0,0.33462]
[1747904045601,0.20842673,110350.0,110340.0,0.33462]
[1747904045838,0.20842673,110350.0,110340.0,1.085186]
[1747904046882,0.20842673,110350.0,110340.0,1.08569491]
[1747904047095,0.20942673,110350.0,110340.0,1.08669491]
[1747904048522,0.20036474,110350.0,110340.0,1.08669491]
[1747904048733,0.20942665,110350.0,110340.0,1.08669491]
[1747904049735,0.21848872,110350.0,110340.0,1.08669491]
[1747904049973,0.001,110350.0,110340.0,1.51052047]
[1747904050175,0.1822415,110350.0,110340.0,1.51052047]
[1747904050541,0.001,110350.0,110340.0,1.53770147]
[1747904051356,0.1822415,110350.0,110340.0,1.53770147]
[1747904054829,0.1822415,110350.0,110340.0,1.53756664]
[1747904055450,0.1822415,110350.0,110340.0,1.23518664]
[1747904055678,0.1822415,110350.0,110340.0,1.47496664]